bitfinex/quotes_ETHUSD_20250909
["timestamp","ask_amount","ask_price","bid_price","bid_amount"]
[1757408723740,0.0002,4355.7,4355.6,7.5869]
[1757408724339,0.0002,4355.7,4355.6,9.88279493]
[1757408725882,0.0002,4355.7,4355.6,9.88179493]
[1757408726802,0.0002,4355.7,4355.6,7.1411]
[1757408726975,0.0002,4355.7,4355.6,9.88179493]
[1757408734380,0.0002,4355.7,4355.6,9.43699493]
[1757408734805,0.0002,4355.7,4355.6,9.89769493]
[1757408736990,0.0002,4355.7,4355.6,9.43699493]
[1757408743917,0.0002,4355.7,4355.6,9.38731693]
[1757408745180,1.3991,4355.7,4355.6,9.38731693]
[1757408745990,1.7101,4355.7,4355.6,9.12689493]
[1757408746319,2.1564,4355.7,4355.6,9.12689493]
[1757408746683,2.1564,4355.7,4355.6,9.12889493]
[1757408748296,2.1556,4355.7,4355.6,9.12789493]
[1757408750514,2.1556,4355.7,4355.6,6.832]
[1757408751845,2.1556,4355.7,4355.6,9.12789493]
[1757408752849,1.3983,4355.7,4355.6,9.12789493]
[1757408753035,0.0002,4355.9,4355.8,2.29578952]
[1757408753275,1.3991,4355.9,4355.8,3.83]
[1757408753422,0.3112,4355.9,4355.8,6.12578952]
[1757408753766,0.3112,4355.9,4355.8,3.83]
[1757408753914,1.7101,4355.9,4355.8,3.83]
[1757408754251,2.1564,4355.9,4355.8,3.83]
[1757408755030,2.1564,4355.9,4355.8,6.12578952]
[1757408757029,0.0002,4355.9,4355.8,9.43888952]
[1757408757369,0.0002,4355.9,4355.8,10.01398952]
[1757408758767,0.0002,4355.9,4355.8,9.55328952]
[1757408760771,0.0002,4355.9,4355.8,10.01398952]
[1757408761175,0.0002,4355.9,4355.8,11.77498952]
[1757408761959,0.0002,4355.9,4355.8,11.31428952]
[1757408762177,0.0002,4355.9,4355.8,11.75518952]
[1757408762893,6.15,4356.1,4356.0,2.29568411]
[1757408763025,6.15,4356.1,4356.0,35.04014611]
[1757408763230,6.15,4356.1,4356.0,36.47736788]
[1757408764178,6.15,4356.1,4356.0,36.13997466]
[1757408764365,6.15,4356.1,4356.0,9.86318411]
[1757408765595,6.15,4356.1,4356.0,11.50360725]
[1757408766371,6.15,4356.1,4356.0,11.06270725]
[1757408770001,6.15,4356.1,4356.0,9.42228411]
[1757408770363,6.15,4356.1,4356.0,11.06270725]
[1757408770969,6.15,4356.1,4356.0,9.42228411]
[1757408771168,6.15,4356.1,4356.0,5.59328411]
[1757408771369,6.15,4356.1,4356.0,9.42128411]
[1757408771570,7.8218,4356.1,4356.0,5.29568411]
[1757408771795,9.90240102,4356.1,4355.8,1.7746]
[1757408772032,8.05230102,4356.1,4356.0,1.22899921]
[1757408772170,8.05230102,4356.1,4356.0,3.0]
[1757408772368,8.05230102,4356.1,4355.9,8.05699921]
[1757408772369,8.05230102,4356.1,4355.9,1.22899921]
[1757408772592,4.14578411,4356.0,4355.8,1.7746]
[1757408772805,1.44946908,4355.9,4355.8,0.0136]
[1757408773119,1.73736908,4355.9,4355.8,3.8416]
[1757408773274,3.58746908,4355.9,4355.8,3.8416]
[1757408773469,5.88320589,4355.9,4355.8,3.8416]
[1757408773698,3.58746908,4355.9,4355.8,3.8416]
[1757408774276,5.88320589,4355.9,4355.8,3.8416]
[1757408774706,3.58666908,4355.9,4355.8,3.8416]
[1757408780033,3.58666908,4355.9,4355.8,0.0156]
[1757408780234,3.58666908,4355.9,4355.8,3.8436]
[1757408780397,3.58766908,4355.9,4355.8,3.8436]
[1757408783605,5.88340589,4355.9,4355.8,0.0156]
[1757408783810,10.50340589,4355.9,4355.8,0.0156]
[1757408785611,3.12146908,4355.9,4355.8,0.0156]
[1757408785809,7.41566908,4355.9,4355.8,0.0156]
[1757408786053,3.58766908,4355.9,4355.8,0.0156]
[1757408786211,5.88340589,4355.9,4355.8,0.0156]
[1757408789340,10.50340589,4355.9,4355.8,0.0156]
[1757408792255,10.50340589,4355.9,4355.8,0.3015]
[1757408792256,1.44966908,4355.9,4355.8,0.3015]
[1757408792454,3.829,4355.9,4355.8,0.3015]
[1757408792639,7.78013681,4355.9,4355.8,0.0156]
[1757408792811,5.4844,4355.9,4355.8,0.0156]
[1757408793030,7.78013681,4355.9,4355.8,0.0156]
[1757408793231,5.4844,4355.9,4355.8,0.0156]
[1757408793854,7.78013681,4355.9,4355.8,0.0156]
[1757408794280,4.41403681,4355.9,4355.8,0.0156]
[1757408795132,6.25352634,4355.9,4355.8,0.0156]
[1757408800593,6.25272634,4355.9,4355.8,0.0156]
[1757408806725,5.79082634,4355.9,4355.8,0.0156]
[1757408806895,10.07972634,4355.9,4355.8,0.0156]
[1757408816067,3.8272,4355.9,4355.8,0.3015]
[1757408816218,0.0002,4355.9,4355.8,3.05108952]
[1757408816419,0.0002,4355.9,4355.8,4.45748873]
[1757408816619,0.0002,4355.9,4355.8,6.22848952]
[1757408818852,0.0002,4355.9,4355.8,7.86891266]
[1757408819445,0.0002,4355.9,4355.8,6.22848952]
[1757408821335,1.73787019,4356.1,4356.0,2.29568411]
[1757408821540,1.73787019,4356.1,4356.0,7.16298411]
[1757408821731,1.73787019,4356.1,4356.0,10.16298411]
[1757408821926,1.73787019,4356.1,4356.0,11.80340725]
[1757408822253,9.841,4356.3,4356.2,2.29557871]
[1757408822447,7.16754038,4356.3,4356.2,4.05757871]
[1757408822650,7.16754038,4356.3,4356.2,4.98447871]
[1757408823026,5.42867019,4356.3,4356.2,30.89994071]
[1757408823376,2.75521057,4356.3,4356.2,30.89994071]
[1757408824177,1.01634038,4356.3,4356.2,30.89994071]
[1757408824393,70.2244,4357.2,4356.3,2.29552601]
[1757408824529,2.07226039,4356.7,4356.6,31.21082994]
[1757408824733,2.07226039,4356.7,4356.6,32.13772994]
[1757408825862,2.07226039,4356.7,4356.6,35.96272994]
[1757408826066,2.07226039,4356.7,4356.6,37.59699107]
[1757408826429,2.07226039,4356.7,4356.6,36.84749107]
[1757408826635,2.07146039,4356.7,4356.6,37.59699107]
[1757408827241,2.07146039,4356.7,4356.6,35.96272994]
[1757408829643,2.07146039,4356.7,4356.6,35.78532994]
[1757408833047,2.07146039,4356.7,4356.6,31.52252994]
[1757408833252,4.09366039,4356.7,4356.6,6.11936794]
[1757408833499,4.09366039,4356.7,4356.6,2.29536794]
[1757408833652,4.09366039,4356.7,4356.6,9.11936794]
[1757408835996,4.87212643,4356.7,4355.8,1.23839952]
[1757408836155,4.87212643,4356.7,4355.9,5.585]
[1757408836156,2.29547298,4356.5,4355.9,5.585]
[1757408836360,2.29547298,4356.5,4356.0,3.0]
[1757408836555,3.15062643,4356.7,4356.1,3.824]
[1757408836556,5.14529275,4356.7,4356.1,3.824]
[1757408836887,0.3007,4356.2,4356.1,6.824]
[1757408837066,2.0222,4356.2,4356.1,6.824]
[1757408837278,2.0222,4356.2,4356.1,3.824]
[1757408838191,2.0222,4356.2,4356.1,6.824]
[1757408841888,1.2936,4356.5,4356.2,2.29554258]
[1757408842079,1.2936,4356.5,4356.3,3.824]
[1757408842390,2.07146039,4356.7,4356.4,0.3117]
[1757408842592,2.07146039,4356.7,4356.5,6.11942063]
[1757408842797,2.0222,4356.6,4356.5,3.824]
[1757408842958,2.0222,4356.6,4356.2,2.29556769]
[1757408843192,1.7215,4356.5,4356.4,2.29547282]
[1757408843529,2.0222,4356.5,4356.4,6.11947332]
[1757408843726,1.5943,4356.5,4356.4,6.11947332]
[1757408844093,1.2936,4356.5,4356.4,3.824]
[1757408844291,1.2936,4356.5,4356.4,6.11947332]
[1757408844494,1.2936,4356.5,4356.4,9.11947332]
[1757408844695,2.07146039,4356.7,4356.5,5.29541554]
[1757408844941,2.49936039,4356.7,4356.6,3.824]
[1757408845314,2.80006039,4356.7,4356.6,3.824]
[1757408845629,4.09366039,4356.7,4356.6,3.824]
[1757408847053,4.40115693,4356.7,4356.1,3.1144]
[1757408847210,1.7215,4356.6,4356.3,3.002]
[1757408847416,1.7215,4356.6,4356.5,3.0]
[1757408847616,2.0222,4356.6,4356.5,3.0]
[1757408849759,2.0222,4356.6,4356.5,6.824]
[1757408852960,2.0214,4356.6,4356.5,6.824]
[1757408861571,3.08747332,4356.4,4356.3,0.002]
[1757408861743,2.29568411,4356.0,4355.9,0.002]
[1757408861982,6.42468411,4356.0,4355.9,0.002]
[1757408862161,9.26681387,4356.0,4355.9,0.002]
[1757408869093,10.05881387,4356.0,4355.9,0.002]
[1757408869281,10.05881387,4356.0,4355.6,0.002]
[1757408869282,0.792,4355.7,4355.6,0.002]
[1757408869489,0.792,4355.4,4355.3,0.002]
[1757408869815,8.59899722,4355.4,4355.3,0.002]
[1757408869982,10.38999722,4355.4,4355.3,0.002]
[1757408875388,6.10609722,4355.4,4355.3,0.002]
[1757408875594,9.93009722,4355.4,4355.3,0.002]
[1757408875993,9.62509722,4355.4,4355.3,0.002]
[1757408876198,6.12000036,4355.4,4355.3,0.3086]
[1757408876514,6.12000036,4355.4,4355.3,0.002]
[1757408877520,7.75610036,4355.4,4355.3,0.002]
[1757408878791,8.21600036,4355.4,4355.3,0.002]
[1757408878991,9.26639516,4355.4,4355.3,0.002]
[1757408881019,10.05839516,4355.4,4355.3,0.002]
[1757408881726,9.59849516,4355.4,4355.3,0.002]
[1757408883224,10.04289516,4355.4,4355.3,0.002]
[1757408884306,9.59849516,4355.4,4355.3,0.002]
[1757408884916,10.04289516,4355.4,4355.3,0.002]
[1757408885432,10.04389516,4355.4,4355.3,0.002]
[1757408888032,9.29449516,4355.4,4355.3,0.002]
[1757408888350,8.24330036,4355.4,4355.3,0.002]
[1757408888711,6.91220036,4355.4,4355.3,0.303]
[1757408889613,9.02130036,4355.4,4355.3,0.002]
[1757408905393,9.02050036,4355.4,4355.3,0.002]
[1757408905601,10.16133027,4355.4,4355.3,0.002]
[1757408906370,10.16133027,4355.4,4354.8,0.027]
[1757408906371,0.9064,4355.3,4354.8,0.027]
[1757408906683,3.08826397,4354.9,4354.8,0.027]
[1757408906885,6.08836943,4354.7,4354.6,0.002]
[1757408907140,10.25630056,4354.7,4354.6,0.002]
[1757408907287,12.36540056,4354.7,4354.6,0.002]
[1757408908248,12.02146943,4354.7,4354.6,0.002]
[1757408908848,12.1951775,4354.7,4354.6,0.002]
[1757408908998,13.68554072,4354.7,4354.6,0.002]
[1757408911992,13.24114072,4354.7,4354.6,0.002]
[1757408912428,11.57644072,4354.7,4354.6,0.3137]
[1757408914913,8.57644072,4354.7,4354.6,0.3137]
[1757408916225,9.92044072,4354.7,4354.6,0.002]
[1757408920445,9.92044072,4354.7,4354.6,0.3137]
[1757408920446,3.2620775,4354.7,4354.6,0.3137]
[1757408920754,7.0870775,4354.7,4354.6,0.3137]
[1757408931251,7.0862775,4354.7,4354.6,0.3137]
[1757408932523,7.0862775,4354.7,4354.6,0.7761]
[1757408932937,7.0862775,4354.7,4354.6,0.3137]
[1757408934245,7.0862775,4354.7,4354.6,0.002]
[1757408934246,9.1912775,4354.7,4354.6,0.002]
[1757408934456,8.7405775,4354.7,4354.6,0.002]
[1757408934928,8.4302775,4354.7,4354.6,0.002]
[1757408942150,8.4302775,4354.7,4353.7,0.002]
[1757408942151,2.29673148,4354.1,4353.2,1.63426113]
[1757408942485,6.0891607,4353.2,4352.8,0.025]
[1757408942710,3.08931902,4352.9,4352.8,0.025]
[1757408942847,13.56221723,4352.9,4352.8,1e-08]
[1757408943185,18.59231821,4352.9,4352.8,1e-08]
[1757408943348,20.86023277,4352.9,4352.8,1e-08]
[1757408944155,20.6455252,4352.9,4352.8,1e-08]
[1757408944391,20.85997474,4352.9,4352.8,1e-08]
[1757408945269,20.6455252,4352.9,4352.8,1e-08]
[1757408946775,20.43042413,4352.9,4352.8,1e-08]
[1757408947088,20.64451884,4352.9,4352.8,1e-08]
[1757408951256,20.43042413,4352.9,4352.8,1e-08]
[1757408952913,20.42742413,4352.9,4352.8,1e-08]
[1757408957398,20.42662413,4352.9,4352.8,1e-08]
[1757408958217,20.64009243,4352.9,4352.8,1e-08]
[1757408967122,20.8540373,4352.9,4352.8,1e-08]
[1757408967535,8.78384016,4352.9,4352.8,1e-08]
[1757408967734,18.7470373,4352.9,4352.8,1e-08]
[1757408967963,6.08958294,4352.4,4352.3,0.002]
[1757408968161,11.90805124,4352.4,4352.3,0.002]
[1757408968353,11.90805124,4352.4,4352.3,0.3057]
[1757408969265,13.5035788,4352.4,4352.3,0.3057]
[1757408971021,13.5025788,4352.4,4352.3,0.3057]
[1757408972061,13.99822244,4352.4,4352.3,0.3057]
[1757408972361,14.34244173,4352.4,4352.3,0.3057]
[1757408976378,14.34244173,4352.4,4352.3,0.002]
[1757408977388,16.37274173,4352.4,4352.3,0.002]
[1757408982714,16.3727753,4352.4,4352.3,0.002]
[1757408983577,16.3719753,4352.4,4352.3,0.002]
[1757408986871,16.37225075,4352.4,4352.3,0.002]
[1757408991698,16.37325075,4352.4,4352.3,0.002]
[1757408992424,2.29779411,4352.0,4351.9,0.002]
[1757408992623,6.66468182,4352.0,4351.9,0.002]
[1757408992835,6.87981888,4352.0,4351.9,0.3034]
[1757408997346,6.88168264,4352.0,4351.9,0.3034]
[1757408997659,6.88168264,4352.0,4351.9,0.002]
[1757408997827,8.16168264,4352.0,4351.9,0.002]
[1757408998027,8.61638264,4352.0,4351.9,0.002]
[1757408998262,8.16168264,4352.0,4351.9,0.002]
[1757408998632,8.45728264,4352.0,4351.9,0.002]
[1757408998936,2.29805814,4351.5,4351.4,0.002]
[1757408999254,6.3442927,4351.5,4351.4,0.002]
[1757408999563,6.55952726,4351.5,4351.4,0.002]
[1757408999739,6.55952726,4351.5,4351.4,0.3034]
[1757409000753,6.55941177,4351.5,4351.4,0.3034]
[1757409000940,3.30517721,4351.5,4351.4,0.7038]
[1757409001252,7.13617721,4351.5,4351.4,0.7038]
[1757409001425,7.13617721,4351.5,4351.4,0.6689]
[1757409001979,7.13617721,4351.5,4351.4,0.3034]
[1757409006968,7.13517721,4351.5,4351.4,0.6689]
[1757409007375,7.13517721,4351.5,4351.4,0.3034]
[1757409008440,7.13417721,4351.5,4351.4,0.3034]
[1757409009382,3.30517721,4351.5,4351.4,0.3034]
[1757409009681,7.13417721,4351.5,4351.4,0.3034]
[1757409009878,7.13337721,4351.5,4351.4,0.3034]
[1757409012185,3.30437721,4351.5,4351.4,0.3034]
[1757409012480,7.13237721,4351.5,4351.4,0.3034]
[1757409012994,6.34037721,4351.5,4351.4,0.3034]
[1757409013778,7.13237721,4351.5,4351.4,0.3034]
[1757409016237,6.34037721,4351.5,4351.4,0.3034]
[1757409016681,3.30437721,4351.5,4351.4,0.3034]
[1757409016835,7.13237721,4351.5,4351.4,0.3034]
[1757409022183,7.13245587,4351.5,4351.4,0.3034]
[1757409024052,6.12525814,4351.5,4351.4,0.6689]
[1757409024256,6.12525814,4351.5,4351.4,0.3034]
[1757409027895,6.12625814,4351.5,4351.4,0.3034]
[1757409033499,3.829,4351.5,4351.4,0.3034]
[1757409033701,0.001,4351.5,4351.4,0.6689]
[1757409034543,0.001,4351.5,4351.4,0.3034]
[1757409034733,0.001,4351.5,4351.4,0.6689]
[1757409036035,0.0002,4351.5,4351.4,0.6689]
[1757409037509,0.0002,4351.5,4351.4,0.3034]
[1757409037936,0.0002,4351.5,4351.4,0.2298]
[1757409041853,0.0002,4351.5,4351.4,2.52791095]
[1757409042244,0.0002,4351.5,4351.4,2.82181095]
[1757409042470,0.0002,4351.5,4351.4,0.5237]
[1757409042684,0.0002,4351.5,4351.4,0.2298]
[1757409062167,0.68926458,4351.7,4351.4,0.2298]
[1757409062330,0.5437,4351.8,4351.4,0.2298]
[1757409062519,1.6284,4351.7,4351.4,0.2298]
[1757409062725,1.1857,4351.6,4351.4,0.2298]
[1757409063153,0.001,4351.5,4351.4,0.2298]
[1757409065324,0.001,4351.5,4351.3,3.83]
[1757409065827,0.001,4351.5,4351.3,0.002]
[1757409066024,1.1867,4351.5,4351.4,3.827]
[1757409069343,1.1867,4351.5,4351.4,6.12511095]
[1757409069678,0.001,4351.5,4351.4,3.827]
[1757409075964,1.1867,4351.5,4351.4,3.827]
[1757409076966,1.6294,4351.5,4351.4,3.827]
[1757409079163,0.001,4351.5,4351.4,9.78407776]
[1757409079473,0.001,4351.5,4351.4,10.47333206]
[1757409079837,0.001,4351.5,4351.4,10.76723206]
[1757409082176,0.001,4351.5,4351.4,12.41790723]
[1757409082473,0.001,4351.5,4351.4,12.12400723]
[1757409083977,0.001,4351.8,4351.7,2.29795252]
[1757409084278,0.001,4351.8,4351.7,9.12395252]
[1757409084433,0.001,4351.8,4351.7,9.41105252]
[1757409084630,0.001,4351.8,4351.7,11.15317263]
[1757409084830,0.001,4351.8,4351.7,9.50293567]
[1757409088384,0.0002,4351.8,4351.7,9.50293567]
[1757409088585,0.0002,4351.8,4351.7,9.87480248]
[1757409088787,0.0002,4351.8,4351.7,10.16870248]
[1757409089420,0.0002,4351.8,4351.7,9.98920248]
[1757409089721,0.0002,4351.8,4351.7,9.61733567]
[1757409090026,0.0002,4351.8,4351.7,9.33023567]
[1757409093924,0.0002,4351.8,4351.7,9.63623567]
[1757409095153,0.0002,4351.8,4351.7,10.00810248]
[1757409096547,0.0002,4351.8,4351.7,10.00710248]
[1757409098320,0.0002,4351.8,4351.7,9.32923567]
[1757409098867,1.1704,4351.8,4351.7,9.32923567]
[1757409100864,1.6162,4351.8,4351.7,9.32923567]
[1757409102379,1.9207,4351.8,4351.7,5.50423567]
[1757409102636,1.9207,4351.8,4351.7,3.20628315]
[1757409102749,1.9207,4351.8,4351.7,6.91588315]
[1757409103202,1.9207,4351.8,4351.7,9.21383567]
[1757409103339,2.11287,4351.8,4351.7,3.09188315]
[1757409103539,2.11287,4351.8,4351.7,6.824]
[1757409104546,1.9207,4351.8,4351.7,6.824]
[1757409107789,1.9207,4351.8,4351.7,6.824]
[1757409109086,1.9207,4351.8,4351.7,3.824]
[1757409110921,1.9207,4351.8,4351.3,0.002]
[1757409110922,1.9207,4351.8,4351.6,3.824]
[1757409111212,1.616,4351.7,4351.6,6.824]
[1757409111542,1.9205,4351.7,4351.6,6.824]
[1757409112514,1.9205,4351.7,4351.6,3.0]
[1757409113837,2.34245488,4351.7,4351.3,0.002]
[1757409113981,0.1144,4351.4,4351.3,0.002]
[1757409114326,2.41251095,4351.4,4351.3,0.002]
[1757409114522,2.71621095,4351.4,4351.3,0.002]
[1757409114819,4.33221095,4351.4,4351.3,0.002]
[1757409115021,2.0341,4351.4,4351.3,0.002]
[1757409115238,4.33221095,4351.4,4351.3,0.002]
[1757409115419,4.99522531,4351.4,4351.3,0.002]
[1757409115822,2.69711436,4351.4,4351.3,0.002]
[1757409116102,4.99522531,4351.4,4351.3,0.002]
[1757409118541,2.0341,4351.4,4351.3,0.002]
[1757409118911,4.33221095,4351.4,4351.3,0.002]
[1757409119309,2.0341,4351.4,4351.3,0.002]
[1757409120397,4.33221095,4351.4,4351.3,0.002]
[1757409120732,2.0341,4351.4,4351.3,0.002]
[1757409121574,4.33221095,4351.4,4351.3,0.002]
[1757409121919,2.0341,4351.4,4351.3,0.002]
[1757409122131,4.33221095,4351.4,4351.3,0.002]
[1757409122516,5.37762733,4351.4,4351.3,0.002]
[1757409124038,9.20162733,4351.4,4351.3,0.002]
[1757409127766,9.99362733,4351.4,4351.3,0.002]
[1757409133082,9.99462733,4351.4,4351.3,0.002]
[1757409135172,9.20262733,4351.4,4351.3,0.002]
[1757409135491,9.99462733,4351.4,4351.3,0.002]
[1757409137166,10.20905376,4351.4,4351.3,0.002]
[1757409138670,9.41705376,4351.4,4351.3,0.002]
[1757409140358,10.20905376,4351.4,4351.3,0.002]
[1757409140587,10.20825376,4351.4,4351.3,0.002]
[1757409141598,9.99382733,4351.4,4351.3,0.002]
[1757409141802,10.20833093,4351.4,4351.3,0.002]
[1757409151313,10.42314242,4351.4,4351.3,0.002]
[1757409156346,10.20863882,4351.4,4351.3,0.002]
[1757409156548,10.42372999,4351.4,4351.3,0.002]
[1757409160252,10.42407798,4351.4,4351.3,0.002]
[1757409160448,4.67957798,4351.4,4351.3,0.3167]
[1757409160658,8.50357798,4351.4,4351.3,0.3167]
[1757409161031,8.50357798,4351.4,4351.3,0.002]
[1757409161519,9.70137798,4351.4,4351.3,0.002]
[1757409163173,3.6341616,4351.4,4351.3,0.3167]
[1757409163394,7.3453616,4351.4,4351.3,0.3167]
[1757409163684,7.13020212,4351.4,4351.3,0.3167]
[1757409165248,7.34531501,4351.4,4351.3,0.3167]
[1757409165994,7.13020212,4351.4,4351.3,0.3167]
[1757409166286,7.13020212,4351.4,4351.3,0.002]
[1757409166287,8.54312369,4351.4,4351.3,0.002]
[1757409166785,8.54232369,4351.4,4351.3,0.002]
[1757409167246,8.32720212,4351.4,4351.3,0.002]
[1757409167647,8.54228919,4351.4,4351.3,0.002]
[1757409168460,7.12940212,4351.4,4351.3,0.3167]
[1757409169384,7.02940212,4351.4,4351.3,0.3167]
[1757409170407,7.02840212,4351.4,4351.3,0.3167]
[1757409172279,8.22620212,4351.4,4351.3,0.002]
[1757409172471,8.44121931,4351.4,4351.3,0.002]
[1757409173623,8.87801931,4351.4,4351.3,0.002]
[1757409174821,9.18301931,4351.4,4351.3,0.002]
[1757409176213,10.51671579,4351.4,4351.3,0.002]
[1757409180118,7.24341931,4351.4,4351.3,0.3167]
[1757409180396,7.02840212,4351.4,4351.3,0.3167]
[1757409181135,7.02833781,4351.4,4351.3,0.3167]
[1757409184617,7.02833781,4351.4,4351.3,0.002]
[1757409184817,8.14633781,4351.4,4351.3,0.002]
[1757409185052,8.61633781,4351.4,4351.3,0.002]
[1757409185954,8.14633781,4351.4,4351.3,0.002]
[1757409188560,8.61633781,4351.4,4351.3,0.002]
[1757409190335,8.44283781,4351.4,4351.3,0.002]
[1757409190540,10.17251614,4351.4,4351.3,0.002]
[1757409191284,8.91283781,4351.4,4351.3,0.002]
[1757409192286,8.91291672,4351.4,4351.3,0.002]
[1757409192939,8.91211672,4351.4,4351.3,0.002]
[1757409199681,8.91210992,4351.4,4351.3,0.002]
[1757409200785,8.14460992,4351.4,4351.3,0.002]
[1757409202133,8.61460992,4351.4,4351.3,0.002]
[1757409202928,8.61360992,4351.4,4351.3,0.002]
[1757409203234,8.14360992,4351.4,4351.3,0.002]
[1757409203790,8.61360992,4351.4,4351.3,0.002]
[1757409205118,8.91010992,4351.4,4351.3,0.002]
[1757409209703,8.61360992,4351.4,4351.3,0.002]
[1757409210206,8.14360992,4351.4,4351.3,0.002]
[1757409210653,2.51420992,4351.4,4351.3,0.3147]
[1757409210816,6.33520885,4351.4,4351.3,0.3147]
[1757409211016,2.51420885,4351.4,4351.3,0.3147]
[1757409211197,6.33520885,4351.4,4351.3,0.3147]
[1757409213203,2.51420885,4351.4,4351.3,0.3147]
[1757409213651,6.12011095,4351.4,4351.3,0.3147]
[1757409215028,2.29911095,4351.4,4351.3,0.3147]
[1757409215231,6.12011095,4351.4,4351.3,0.3147]
[1757409215689,0.001,4351.4,4351.3,0.3147]
[1757409215951,0.001,4351.4,4351.3,0.6086]
[1757409216456,0.001,4351.4,4351.3,5.90676376]
[1757409216948,0.001,4352.3,4351.4,28.915462]
[1757409217163,0.001,4352.3,4352.2,2.05586069]
[1757409217306,0.001,4352.3,4352.2,8.9887]
[1757409217767,0.001,4352.3,4352.2,11.67117125]
[1757409219248,0.0002,4352.3,4352.2,11.67117125]
[1757409221028,0.0002,4352.3,4352.2,11.37827125]
[1757409222667,0.0002,4352.3,4352.2,1.85588273]
[1757409222836,1.8466,4352.3,4352.2,1.764]
[1757409224798,1.0904,4352.3,4352.2,0.21396636]
[1757409225303,1.3821,4352.3,4352.2,0.21396636]
[1757409225500,1.8466,4352.3,4352.2,0.21396636]
[1757409227203,1.5549,4352.3,4352.2,0.21396636]
[1757409227560,1.0904,4352.3,4352.2,0.21396636]
[1757409228513,0.0002,4352.3,4352.2,0.50326636]
[1757409228811,0.0002,4352.3,4352.2,2.80095488]
[1757409229124,0.0002,4352.3,4352.2,3.09385488]
[1757409229519,0.0002,4352.3,4352.2,3.78298331]
[1757409233105,0.0002,4352.3,4352.2,11.44121969]
[1757409233282,0.0002,4352.3,4352.2,11.41824281]
[1757409233602,0.0002,4352.3,4352.2,37.33370481]
[1757409236528,0.0002,4352.3,4352.2,37.11973845]
[1757409236830,0.0002,4352.3,4352.2,37.33355187]
[1757409240399,0.0002,4352.3,4352.2,37.33255187]
[1757409242624,0.0002,4352.3,4352.2,37.03965187]
[1757409243226,0.0002,4352.3,4352.2,38.69181256]
[1757409244161,0.0002,4352.3,4352.2,38.98471256]
[1757409245123,0.0002,4352.3,4352.2,37.33255187]
[1757409245323,0.0004,4352.4,4352.3,5.99949523]
[1757409245627,0.0004,4352.4,4352.3,9.91599334]
[1757409245827,0.0004,4352.4,4352.3,10.22079334]
[1757409246247,0.0004,4352.4,4352.3,8.57400865]
[1757409246450,0.0004,4352.4,4352.3,8.28110865]
[1757409246662,0.0004,4352.4,4352.3,8.57400865]
[1757409246870,0.0004,4352.4,4352.3,8.28110865]
[1757409247830,0.0004,4352.4,4352.3,11.09244915]
[1757409248036,1.6335,4352.4,4352.3,11.09244915]
[1757409248572,1.1654,4352.4,4352.3,11.09244915]
[1757409249232,1.6335,4352.4,4352.3,11.09244915]
[1757409249658,1.1654,4352.4,4352.3,10.87863573]
[1757409251796,0.0004,4352.4,4352.3,11.88529523]
[1757409252982,1.1654,4352.4,4352.3,11.58049523]
[1757409253436,1.6335,4352.4,4352.3,12.52588068]
[1757409253888,1.9292,4352.4,4352.3,12.52588068]
[1757409254192,1.9292,4352.4,4352.3,10.87863573]
[1757409254555,1.9292,4352.4,4352.3,7.06063573]
[1757409254751,1.9292,4352.4,4352.3,10.87863573]
[1757409254952,1.6335,4352.4,4352.3,10.87863573]
[1757409256888,1.1654,4352.4,4352.3,10.87863573]
[1757409258158,1.9292,4352.4,4352.3,10.87863573]
[1757409261376,1.9292,4352.4,4352.3,1.763]
[1757409261531,1.9292,4352.4,4352.3,7.87763573]
[1757409261884,1.9292,4352.4,4352.3,10.87763573]
[1757409264441,1.1654,4352.4,4352.3,10.87763573]
[1757409264636,1.1654,4352.4,4352.3,9.2818595]
[1757409265069,1.1654,4352.4,4352.3,9.3962595]
[1757409266036,1.9292,4352.4,4352.3,9.04253466]
[1757409266263,1.9292,4352.4,4352.3,10.34528062]
[1757409266544,1.9292,4352.4,4352.3,8.6944]
[1757409267072,1.9292,4352.4,4352.3,10.99203573]
[1757409267288,1.9292,4352.4,4352.3,12.64291635]
[1757409268637,0.0004,4352.4,4352.3,12.64291635]
[1757409268844,0.0004,4352.4,4352.3,11.99869523]
[1757409269744,0.0004,4352.4,4352.3,12.29159523]
[1757409270658,0.0004,4352.4,4352.3,11.99869523]
[1757409271380,0.0006,4352.7,4352.6,2.29747736]
[1757409271583,0.0006,4352.7,4352.6,9.11447736]
[1757409271584,1.1163,4352.7,4352.6,9.11447736]
[1757409271762,1.1163,4352.7,4352.6,9.22887736]
[1757409272084,1.1163,4352.7,4352.6,9.91789025]
[1757409274844,0.0006,4352.7,4352.6,10.93454975]
[1757409275464,0.0006,4352.7,4352.6,37.14291175]
[1757409276208,0.025,4352.8,4352.7,31.21288658]
[1757409276505,0.025,4352.8,4352.7,31.56102124]
[1757409276705,0.025,4352.8,4352.7,31.87582124]
[1757409276909,0.025,4352.8,4352.7,32.33682124]
[1757409279809,0.025,4352.8,4352.7,32.69054608]
[1757409280008,0.001,4352.9,4352.8,2.2973718]
[1757409280171,0.001,4352.9,4352.8,9.8162313]
[1757409280366,0.001,4352.9,4352.8,10.1310313]
[1757409284902,1.231,4352.9,4352.8,10.1310313]
[1757409286434,2.461,4352.9,4352.8,10.1310313]
[1757409287757,3.691,4352.9,4352.8,10.1310313]
[1757409289014,4.921,4352.9,4352.8,10.1310313]
[1757409290428,6.151,4352.9,4352.8,10.1310313]
[1757409291132,6.151,4352.9,4352.8,10.1330313]
[1757409291732,7.381,4352.9,4352.8,10.3628313]
[1757409292026,7.381,4352.9,4352.8,10.1330313]
[1757409292751,1.65243853,4352.9,4352.8,10.1330313]
[1757409293085,2.88243853,4352.9,4352.8,10.1330313]
[1757409293794,2.88243853,4352.9,4352.8,6.3160313]
[1757409294022,2.88243853,4352.9,4352.8,9.8172313]